bitfinex-derivatives/quotes_BTCF0:USTF0_20251023
["timestamp","ask_amount","ask_price","bid_price","bid_amount"]
[1761244837277,0.3115855,110470.0,110460.0,0.74136632]
[1761244838384,0.3115855,110470.0,110460.0,0.75466632]
[1761244839383,0.1364151,110470.0,110460.0,0.75466632]
[1761244839887,0.2986455,110470.0,110460.0,0.75466632]
[1761244840783,0.29871944,110470.0,110460.0,0.75466632]
[1761244843788,0.29871944,110470.0,110460.0,0.91697066]
[1761244844581,0.0915051,110470.0,110460.0,0.91697066]
[1761244845196,0.27556944,110470.0,110460.0,0.91697066]
[1761244847593,0.29871944,110470.0,110460.0,0.75466632]
[1761244848184,0.29871944,110470.0,110460.0,0.91697066]
[1761244848497,0.29871944,110470.0,110460.0,0.75466632]
[1761244849593,0.29871944,110470.0,110460.0,0.91697066]
[1761244851492,0.29871944,110470.0,110460.0,0.75466632]
[1761244853193,0.1364151,110470.0,110460.0,0.75466632]
[1761244853393,0.29871944,110470.0,110460.0,0.75466632]
[1761244855093,0.29871944,110470.0,110460.0,0.91697066]
[1761244855594,0.29871944,110470.0,110460.0,0.75466632]
[1761244855791,0.29871944,110470.0,110460.0,0.91697066]
[1761244856095,0.29871944,110470.0,110460.0,0.75466632]
[1761244856286,0.29871944,110470.0,110460.0,0.91697066]
[1761244856887,0.1364151,110470.0,110460.0,0.91697066]
[1761244857090,0.29871944,110470.0,110460.0,0.91697066]
[1761244857296,0.25380944,110470.0,110460.0,1.27777066]
[1761244857490,0.27631944,110470.0,110460.0,1.27777066]
[1761244857890,0.29837944,110470.0,110460.0,1.27777066]
[1761244858795,0.29837944,110470.0,110460.0,1.11546632]
[1761244858994,0.25380944,110470.0,110460.0,1.27777066]
[1761244859395,0.27631944,110470.0,110460.0,1.27777066]
[1761244859797,0.29837944,110470.0,110460.0,1.27777066]
[1761244860094,0.29837944,110470.0,110460.0,1.36828416]
[1761244860798,0.27631944,110470.0,110460.0,1.36828416]
[1761244861700,0.0915054,110470.0,110460.0,1.5305885]
[1761244862093,0.001,110470.0,110460.0,1.5305885]
[1761244862704,0.001,110470.0,110460.0,1.9305885]
[1761244862901,0.49671441,110500.0,110490.0,0.05535]
[1761244863101,0.65965868,110500.0,110490.0,0.73619]
[1761244863401,0.68205587,110500.0,110490.0,0.73619]
[1761244864106,0.68205587,110500.0,110490.0,0.73819]
[1761244864706,0.51975153,110500.0,110490.0,0.73819]
[1761244865400,0.49735434,110500.0,110490.0,0.73819]
[1761244865908,0.65965868,110500.0,110490.0,0.73819]
[1761244866794,0.49735434,110500.0,110490.0,0.73819]
[1761244867201,0.49735434,110500.0,110490.0,0.90049434]
[1761244868705,0.49735434,110500.0,110490.0,0.73819]
[1761244871105,0.65965868,110500.0,110490.0,0.73819]
[1761244873312,0.33505,110500.0,110490.0,0.73819]
[1761244873509,0.65965868,110500.0,110490.0,0.73819]
[1761244875104,1.23490302,110500.0,110490.0,0.3645]
[1761244875305,1.09497332,110500.0,110490.0,0.3645]
[1761244875613,1.11912347,110500.0,110490.0,0.3645]
[1761244878312,1.11912347,110500.0,110490.0,0.7253]
[1761244878512,1.11912347,110500.0,110490.0,0.3645]
[1761244879009,1.11912347,110500.0,110490.0,0.32188]
[1761244879513,1.31362802,110500.0,110490.0,0.32188]
[1761244879714,1.51212368,110500.0,110490.0,0.32188]
[1761244880517,1.67442802,110500.0,110490.0,0.002]
[1761244880916,0.1480071,110480.0,110470.0,0.40326]
[1761244881117,0.47261578,110480.0,110470.0,0.72314]
[1761244881417,0.49499042,110480.0,110470.0,0.72314]
[1761244882112,0.49499042,110480.0,110470.0,0.72714]
[1761244882318,0.49599042,110480.0,110470.0,0.73014]
[1761244884118,0.48305042,110480.0,110470.0,0.74325]
[1761244884312,0.15844174,110480.0,110470.0,0.74325]
[1761244884517,0.46067578,110480.0,110470.0,0.74325]
[1761244884711,0.48305042,110480.0,110470.0,0.74325]
[1761244886016,0.32074608,110480.0,110470.0,0.74325]
[1761244886216,0.29837144,110480.0,110470.0,0.74325]
[1761244887016,0.29837144,110480.0,110470.0,0.8337553]
[1761244887814,0.29837144,110480.0,110470.0,0.74325]
[1761244888018,0.1360671,110480.0,110470.0,0.99605964]
[1761244888218,0.0914971,110480.0,110470.0,0.99605964]
[1761244888420,0.1146271,110480.0,110470.0,0.90555434]
[1761244888621,0.1361071,110480.0,110470.0,0.90555434]
[1761244888820,0.29841144,110480.0,110470.0,0.90555434]
[1761244889211,0.29841144,110480.0,110470.0,0.74325]
[1761244890823,0.29841144,110480.0,110470.0,0.90555434]
[1761244894223,0.29841144,110480.0,110470.0,0.74325]
[1761244894626,0.29841144,110480.0,110470.0,0.90555434]
[1761244895524,0.29841144,110480.0,110470.0,0.74325]
[1761244895727,0.29841144,110480.0,110470.0,0.90555434]
[1761244896028,0.29841144,110480.0,110470.0,0.74325]
[1761244897120,0.0914971,110480.0,110470.0,0.99605964]
[1761244899828,0.001,110480.0,110470.0,0.99605964]
[1761244900726,0.001,110480.0,110470.0,0.99598659]
[1761244904336,0.0914971,110480.0,110470.0,0.99598659]
[1761244904637,0.001,110480.0,110470.0,0.99598659]
[1761244922855,0.02293,110480.0,110470.0,0.99598659]
[1761244923060,0.1134271,110480.0,110470.0,0.99598659]
[1761244923560,0.0914971,110480.0,110470.0,0.99598659]
[1761244924763,0.001,110480.0,110470.0,0.99598659]
[1761244925861,0.1134271,110480.0,110470.0,0.99598659]
[1761244926062,0.0914971,110480.0,110470.0,0.99598659]
[1761244926260,0.001,110480.0,110470.0,0.99598659]
[1761244927364,0.0914972,110480.0,110470.0,0.99598659]
[1761244928865,0.1353272,110480.0,110470.0,0.74325]
[1761244929066,0.1353272,110480.0,110470.0,0.90548129]
[1761244929464,0.1353272,110480.0,110470.0,0.74325]
[1761244931669,0.1353272,110480.0,110470.0,0.8337553]
[1761244934366,0.1353272,110480.0,110470.0,0.74325]
[1761244937660,0.1353272,110480.0,110470.0,0.8337554]
[1761244938667,0.29755849,110480.0,110470.0,0.74325]
[1761244938875,0.1353272,110480.0,110470.0,0.74325]
[1761244939067,0.29755849,110480.0,110470.0,0.74325]
[1761244939973,0.1353272,110480.0,110470.0,0.74325]
[1761244940176,0.1479972,110480.0,110470.0,0.67349]
[1761244946380,0.1353272,110480.0,110470.0,0.93649669]
[1761244946574,0.0914972,110480.0,110470.0,0.98533508]
[1761244946977,0.1365972,110480.0,110470.0,0.98533508]
[1761244947476,0.1365972,110480.0,110470.0,0.82310379]
[1761244947780,0.1498472,110480.0,110470.0,0.73259839]
[1761244949477,0.1498472,110480.0,110470.0,0.72232839]
[1761244950281,0.1365972,110480.0,110470.0,0.73259839]
[1761244954587,0.1365972,110480.0,110470.0,0.89482968]
[1761244955088,0.1365972,110480.0,110470.0,0.73259839]
[1761244955978,0.1498472,110480.0,110470.0,0.72232839]
[1761244956180,0.1140772,110480.0,110470.0,0.73259839]
[1761244956378,0.1365972,110480.0,110470.0,0.73259839]
[1761244957386,0.1365972,110480.0,110470.0,0.78977839]
[1761244960690,0.29885677,110480.0,110470.0,0.95203796]
[1761244961188,0.31210677,110480.0,110470.0,0.94176796]
[1761244961986,0.31210677,110480.0,110470.0,0.89292957]
[1761244963388,0.0914972,110480.0,110470.0,1.04254326]
[1761244965492,0.0914972,110480.0,110470.0,0.99370487]
[1761244966484,0.001,110480.0,110470.0,0.99370487]
[1761244966679,0.001,110480.0,110470.0,1.04254326]
[1761244967487,0.001,110480.0,110470.0,1.60480283]
[1761244967687,0.11454651,110500.0,110490.0,0.05709]
[1761244967688,0.1355823,110500.0,110490.0,0.05709]
[1761244967993,0.1355823,110500.0,110490.0,0.89962957]
[1761244968193,0.1355823,110500.0,110490.0,1.26042957]
[1761244968784,0.1355823,110500.0,110490.0,1.35091857]
[1761244968999,0.1355823,110500.0,110490.0,1.35491857]
[1761244969186,0.1130623,110500.0,110490.0,1.35491857]
[1761244969392,0.135579,110510.0,110500.0,0.0575]
[1761244969594,0.135579,110510.0,110500.0,0.58055957]
[1761244971088,0.113059,110510.0,110500.0,0.58055957]
[1761244971291,0.090479,110510.0,110500.0,0.74281914]
[1761244971594,0.30583857,110510.0,110500.0,0.59155901]
[1761244971793,0.143579,110510.0,110500.0,0.59155901]
[1761244971997,0.30583857,110510.0,110500.0,0.59155901]
[1761244972598,0.143579,110510.0,110500.0,0.59155901]
[1761244975401,0.121059,110510.0,110500.0,0.59155901]
[1761244975702,0.142979,110510.0,110500.0,0.68203971]
[1761244976101,0.142979,110510.0,110500.0,0.84429928]
[1761244977497,0.098479,110510.0,110500.0,0.84429928]
[1761244977903,0.098479,110510.0,110500.0,0.75381858]
[1761244978106,0.141589,110510.0,110500.0,0.84429938]
[1761244978902,0.141589,110510.0,110500.0,0.75381858]
[1761244979606,0.141589,110510.0,110500.0,0.84429928]
[1761244980306,0.119669,110510.0,110500.0,0.84429928]
[1761244980499,0.098479,110510.0,110500.0,0.84429928]
[1761244980906,0.119669,110510.0,110500.0,0.51978014]
[1761244981102,0.098479,110510.0,110500.0,0.84429928]
[1761244981613,0.119669,110510.0,110500.0,0.84429928]
[1761244981804,0.141589,110510.0,110500.0,0.84429928]
[1761244982117,0.098479,110510.0,110500.0,0.84879928]
[1761244983015,0.17087791,110540.0,110520.0,0.1007322]
[1761244983226,0.30907327,110540.0,110530.0,0.88745957]
[1761244983405,0.35907327,110540.0,110530.0,0.7252]
[1761244984116,0.35907327,110540.0,110530.0,0.88745957]
[1761244984420,0.02419,110540.0,110530.0,0.99080577]
[1761244984619,0.129638,110540.0,110530.0,0.99080577]
[1761244984816,0.06111,110540.0,110530.0,0.99080577]
[1761244985018,0.04611,110540.0,110530.0,0.99080577]
[1761244985218,0.06111,110540.0,110530.0,0.99180577]
[1761244985723,0.151558,110540.0,110530.0,0.99180577]
[1761244985917,0.151558,110540.0,110530.0,1.06264324]
[1761244986719,0.151558,110540.0,110530.0,0.74332324]
[1761244986918,0.151558,110540.0,110530.0,1.06260324]
[1761244987118,0.150558,110540.0,110530.0,1.06260324]
[1761244987821,0.06011,110540.0,110530.0,1.06260324]
[1761244988219,0.150558,110540.0,110530.0,1.06260324]
[1761244988424,0.48847714,110540.0,110530.0,0.72616]
[1761244989224,0.32621757,110540.0,110530.0,0.72616]
[1761244989531,0.150558,110540.0,110530.0,0.90130957]
[1761244990226,0.31281757,110540.0,110530.0,0.90130957]
[1761244990426,0.32621757,110540.0,110530.0,0.90130957]
[1761244990626,0.32621757,110540.0,110530.0,0.88841957]
[1761244991326,0.32621757,110540.0,110530.0,0.97887577]
[1761244995025,0.32621757,110540.0,110530.0,0.99176577]
[1761244995026,0.017,110540.0,110530.0,0.99176577]
[1761244995626,0.03819,110540.0,110530.0,0.99176577]
[1761244995921,0.06011,110540.0,110530.0,0.99176577]
[1761244996121,0.017,110540.0,110530.0,1.15402534]
[1761244997930,0.06011,110540.0,110530.0,0.99176577]
[1761244998131,0.0048,110550.0,110540.0,0.1488281]
[1761244998330,0.0048,110550.0,110540.0,0.83414724]
[1761245000033,0.0078,110550.0,110540.0,0.83414724]
[1761245000835,0.0208,110550.0,110540.0,0.83514724]
[1761245001934,0.0178,110550.0,110540.0,0.83514724]
[1761245002834,0.0168,110550.0,110540.0,0.83514724]
[1761245005941,0.04523,110570.0,110560.0,0.1469418]
[1761245006143,0.1356536,110570.0,110560.0,1.51218094]
[1761245006434,0.1356536,110570.0,110560.0,1.42174914]
[1761245006640,0.31085317,110570.0,110560.0,1.25948957]
[1761245007236,0.31385317,110570.0,110560.0,1.25948957]
[1761245007437,0.31385317,110570.0,110560.0,1.26848957]
[1761245008038,0.31385317,110570.0,110560.0,1.26714249]
[1761245008236,0.1526835,110570.0,110560.0,1.11515292]
[1761245008442,0.1526835,110570.0,110560.0,1.53010376]
[1761245008631,0.1526835,110570.0,110560.0,1.27741249]
[1761245008943,0.1526835,110570.0,110560.0,1.35107331]
[1761245009241,0.33678409,110580.0,110570.0,0.1461836]
[1761245009242,0.09523133,110580.0,110570.0,0.1461836]
[1761245009532,0.09523133,110580.0,110570.0,0.66924317]
[1761245009533,0.1136354,110580.0,110570.0,0.66924317]
[1761245009734,0.1367354,110580.0,110570.0,0.66924317]
[1761245009935,0.09632,110580.0,110570.0,0.66924317]
[1761245010332,0.09632,110580.0,110570.0,0.67024317]
[1761245010530,0.09632,110580.0,110570.0,0.67324317]
[1761245010737,0.1867354,110580.0,110570.0,0.67324317]
[1761245011239,0.09632,110580.0,110570.0,0.67324317]
[1761245012236,0.04632,110580.0,110570.0,0.67324317]
[1761245013642,0.1367353,110580.0,110570.0,0.67324307]
[1761245013832,0.1496753,110580.0,110570.0,0.4980935]
[1761245014033,0.1496753,110580.0,110570.0,0.56992957]
[1761245015040,0.1496753,110580.0,110570.0,0.58281957]
[1761245015240,0.1496753,110580.0,110570.0,0.67324307]
[1761245015741,0.04632,110580.0,110570.0,0.67324307]
[1761245016435,0.1367354,110580.0,110570.0,0.67324307]
[1761245019538,0.1367354,110580.0,110570.0,0.4980935]
[1761245019539,0.31193497,110580.0,110570.0,0.4980935]
[1761245019740,0.31193497,110580.0,110570.0,0.66035307]
[1761245019939,0.1496754,110580.0,110570.0,0.66035307]
[1761245020553,0.1496754,110580.0,110570.0,0.67324307]
[1761245020735,0.1496754,110580.0,110570.0,0.5109835]
[1761245021644,0.1367354,110580.0,110570.0,0.40767]
[1761245021854,0.1496754,110580.0,110570.0,0.72667]
[1761245022236,0.1996754,110580.0,110570.0,0.36587]
[1761245022532,0.22373961,110580.0,110570.0,0.72667]
[1761245022739,0.38570861,110580.0,110570.0,0.04687]
[1761245023039,0.25593982,110580.0,110570.0,0.36587]
[1761245023648,0.25593982,110580.0,110570.0,0.72667]
[1761245024041,0.25593982,110580.0,110570.0,0.8269835]
[1761245024242,0.23187561,110580.0,110570.0,0.72367]
[1761245024547,0.23187561,110580.0,110570.0,0.73656]
[1761245024745,0.23187561,110580.0,110570.0,0.73556]
[1761245025046,0.25592012,110580.0,110570.0,0.8259835]
[1761245025437,0.1996754,110580.0,110570.0,0.8259835]
[1761245025636,0.2016754,110580.0,110570.0,0.8259835]
[1761245026546,0.2016754,110580.0,110570.0,0.73556]
[1761245028049,0.2016754,110580.0,110570.0,0.74006]
[1761245028443,0.1887354,110580.0,110570.0,0.902029]
[1761245028643,0.1887354,110580.0,110570.0,0.9924525]
[1761245029043,0.1887354,110580.0,110570.0,0.74006]
[1761245029242,0.1887354,110580.0,110570.0,0.8304835]
[1761245029751,0.1887354,110580.0,110570.0,0.74006]
[1761245030052,0.1887354,110580.0,110570.0,0.8304836]
[1761245030845,0.1887354,110580.0,110570.0,0.9924526]
[1761245032758,0.1387354,110580.0,110570.0,0.9924526]
[1761245033144,0.0924154,110580.0,110570.0,0.9924526]
[1761245033745,0.1366354,110580.0,110570.0,0.9924526]
[1761245034756,0.002,110580.0,110570.0,1.1396526]
[1761245035150,0.02395,110580.0,110570.0,0.9924526]
[1761245035457,0.1366353,110580.0,110570.0,0.9924525]
[1761245035844,0.1366353,110580.0,110570.0,0.42106]
[1761245036048,0.1505753,110580.0,110570.0,0.72713]
[1761245036259,0.1366353,110580.0,110570.0,0.73988]
[1761245036858,0.1505753,110580.0,110570.0,0.73988]
[1761245037449,0.1505753,110580.0,110570.0,0.40817]
[1761245037645,0.3125443,110580.0,110570.0,0.40817]
[1761245037851,0.33658881,110580.0,110570.0,0.72709]
[1761245040662,0.33658881,110580.0,110570.0,0.36629]
[1761245040959,0.76878902,110580.0,110570.0,0.36629]
[1761245041161,0.78995614,110580.0,110570.0,0.36629]
[1761245042360,0.75775593,110580.0,110570.0,0.36629]
[1761245043362,0.59578693,110580.0,110570.0,0.36629]
[1761245046962,0.75775593,110580.0,110570.0,0.36629]
[1761245049765,0.35775593,110580.0,110570.0,0.36629]
[1761245049963,0.33658881,110580.0,110570.0,0.36629]
[1761245050166,0.17461981,110580.0,110570.0,0.04737]
[1761245050362,0.17461981,110580.0,110570.0,0.36629]
[1761245050771,0.33658881,110580.0,110570.0,0.36629]
[1761245052466,0.17461981,110580.0,110570.0,0.36629]
[1761245052662,0.17461981,110580.0,110570.0,0.3767]
[1761245053069,0.17461981,110580.0,110570.0,0.36629]
[1761245053468,0.17261981,110580.0,110570.0,0.36629]
[1761245053664,0.17261981,110580.0,110570.0,0.36729]
[1761245054768,0.17261981,110580.0,110570.0,0.37029]
[1761245054972,0.17261981,110580.0,110570.0,0.4607135]
[1761245055279,0.17261981,110580.0,110570.0,0.37029]
[1761245055662,0.17261981,110580.0,110570.0,0.4607135]
[1761245055867,0.1485753,110580.0,110570.0,0.8215135]
[1761245056075,0.17261981,110580.0,110570.0,0.73109]
[1761245056268,0.17261981,110580.0,110570.0,0.8215135]
[1761245056468,0.1346353,110580.0,110570.0,0.9938925]
[1761245056969,0.1123653,110580.0,110570.0,0.9938925]
[1761245057175,0.0904153,110580.0,110570.0,0.9938925]
[1761245057375,0.0904153,110580.0,110570.0,0.9938525]
[1761245059074,0.0904153,110580.0,110570.0,1.3546525]
[1761245061766,0.0952077,110590.0,110580.0,0.0904154]
[1761245061971,0.1394277,110590.0,110580.0,0.741308]
[1761245062177,0.1394277,110590.0,110580.0,0.579339]
[1761245062480,0.1394277,110590.0,110580.0,0.6697544]
[1761245062873,0.1414277,110590.0,110580.0,0.6697544]
[1761245065683,0.0972077,110590.0,110580.0,0.6697544]
[1761245066387,0.1183977,110590.0,110580.0,0.6697544]
[1761245066573,0.02799,110590.0,110580.0,0.6697544]
[1761245066972,0.05033,110590.0,110580.0,0.6697544]
[1761245067174,0.1407371,110590.0,110580.0,0.6697544]
[1761245068978,0.02799,110590.0,110580.0,0.6697544]
[1761245069174,0.0068,110590.0,110580.0,0.6697544]
[1761245069776,0.0068,110590.0,110580.0,0.8317234]
[1761245075584,0.0972072,110590.0,110580.0,0.8317234]
[1761245075987,0.0972072,110590.0,110580.0,0.6697544]
[1761245076186,0.0972072,110590.0,110580.0,0.8317234]
[1761245076588,0.0972072,110590.0,110580.0,0.6697544]
[1761245076992,0.1394072,110590.0,110580.0,0.6697544]
[1761245078092,0.1183272,110590.0,110580.0,0.6697544]
[1761245079493,0.1394072,110590.0,110580.0,0.6697544]
[1761245080190,0.1394072,110590.0,110580.0,0.5077854]
[1761245080396,0.1394072,110590.0,110580.0,0.6697544]
[1761245082694,0.1394072,110590.0,110580.0,0.8316151]
[1761245085494,0.0068,110590.0,110580.0,0.8316151]
[1761245086213,0.1183271,110590.0,110580.0,0.88046249]
[1761245086402,0.1394071,110590.0,110580.0,0.7411997]
[1761245086602,0.1394071,110590.0,110580.0,0.831615]
[1761245087106,0.1394071,110590.0,110580.0,0.88046239]
[1761245087793,0.1394071,110590.0,110580.0,1.19918239]
[1761245088906,0.1530171,110590.0,110580.0,0.94685224]
[1761245089096,0.1530171,110590.0,110580.0,0.93410224]
[1761245089709,0.1530171,110590.0,110580.0,1.09601709]
[1761245090609,0.1530171,110590.0,110580.0,1.18643239]
[1761245092611,0.1530171,110590.0,110580.0,1.19939239]
[1761245092808,0.31493195,110590.0,110580.0,0.72334]
[1761245093006,0.33897646,110590.0,110580.0,0.72334]
[1761245093311,0.33897646,110590.0,110580.0,0.88525485]
[1761245093510,0.33900936,110590.0,110580.0,0.88525485]
[1761245093707,0.17709451,110590.0,110580.0,0.88525485]
[1761245093914,0.33900936,110590.0,110580.0,0.72334]
[1761245094111,0.33900936,110590.0,110580.0,0.88525485]
[1761245094412,0.33900936,110590.0,110580.0,0.52445485]
[1761245094814,0.17709451,110590.0,110580.0,0.52441485]
[1761245095007,0.33900936,110590.0,110580.0,0.52441485]
[1761245097218,0.31493195,110590.0,110580.0,0.88521485]
[1761245097411,0.31493195,110590.0,110580.0,0.52441485]
[1761245097606,0.31493195,110590.0,110580.0,0.88521485]
[1761245097802,0.31493195,110590.0,110580.0,0.52441485]
[1761245098002,0.31493195,110590.0,110580.0,0.88521485]
[1761245098515,0.31493195,110590.0,110580.0,0.52441485]
[1761245098714,0.31493195,110590.0,110580.0,0.88521485]
[1761245098916,0.1530171,110590.0,110580.0,0.97563015]
[1761245099107,0.1394071,110590.0,110580.0,0.8269153]
[1761245099309,0.1394071,110590.0,110580.0,1.150745]
[1761245100012,0.1472071,110590.0,110580.0,1.150745]
[1761245100320,0.0972071,110590.0,110580.0,1.150745]
[1761245101511,0.0068,110590.0,110580.0,1.150745]
[1761245102519,0.0068,110590.0,110580.0,1.19959239]
[1761245102918,0.0068,110590.0,110580.0,1.36150724]
[1761245103117,0.18002404,110620.0,110610.0,0.1495209]
[1761245103317,0.1475227,110620.0,110610.0,1.24857485]
[1761245103913,0.1475227,110620.0,110610.0,1.26132485]
[1761245104111,0.30943755,110620.0,110610.0,1.24857485]
[1761245104316,0.8713524,110620.0,110610.0,0.36506]
[1761245104623,1.27740374,110620.0,110610.0,0.36506]
[1761245105111,0.1475308,110610.0,110600.0,0.02316]
[1761245105317,0.1475472,110590.0,110580.0,0.40718]
[1761245105620,0.17160348,110590.0,110580.0,0.88777485]
[1761245105813,0.33351833,110590.0,110580.0,0.88777485]
[1761245106215,0.17160348,110590.0,110580.0,0.88777485]
[1761245106417,0.17160348,110590.0,110580.0,0.89077485]
[1761245107126,0.17160348,110590.0,110580.0,0.89177485]
[1761245107423,0.17160348,110590.0,110580.0,0.98219025]
[1761245107624,0.17160348,110590.0,110580.0,0.89177485]
[1761245108724,0.17160348,110590.0,110580.0,0.57309485]
[1761245109025,0.17160348,110590.0,110580.0,0.89177485]
[1761245112126,0.13652348,110590.0,110580.0,1.154615]
[1761245112319,0.1347972,110590.0,110580.0,0.8307853]
[1761245112525,0.1475472,110590.0,110580.0,1.0536897]
[1761245112724,0.17160348,110590.0,110580.0,1.0536897]
[1761245112918,0.15885348,110590.0,110580.0,1.0641997]
[1761245113124,0.1347972,110590.0,110580.0,1.1546151]
[1761245114733,0.1124672,110590.0,110580.0,1.1546151]
[1761245114931,0.20380099,110600.0,110580.0,1.1546151]
[1761245115133,0.20380099,110600.0,110590.0,0.58229485]
[1761245115537,0.1475445,110600.0,110590.0,0.58229485]
[1761245115928,0.30945935,110600.0,110590.0,0.56909485]
[1761245117437,0.31145935,110600.0,110590.0,0.56909485]
[1761245119738,0.31145935,110600.0,110590.0,0.40718]
[1761245119942,0.31145935,110600.0,110590.0,0.02316]
[1761245120238,0.31145935,110600.0,110590.0,0.20829485]
[1761245120738,0.31145935,110600.0,110590.0,0.04638]
[1761245120739,0.8733742,110600.0,110590.0,0.04638]
[1761245120939,0.49456926,110600.0,110590.0,0.04638]
[1761245121138,0.33265441,110600.0,110590.0,0.04638]
[1761245121340,0.31145935,110600.0,110590.0,0.04638]
[1761245123241,0.31145935,110600.0,110590.0,0.20829485]
[1761245125642,0.31145935,110600.0,110590.0,0.56909485]
[1761245126145,0.1495445,110600.0,110590.0,0.56909485]
[1761245126344,0.1367945,110600.0,110590.0,0.58229485]
[1761245127446,0.1367945,110600.0,110590.0,0.67270205]
[1761245128039,0.002,110600.0,110590.0,0.8346169]
[1761245128241,0.002,110600.0,110590.0,1.28346429]
[1761245128635,0.002,110600.0,110590.0,1.2346169]
[1761245128945,0.10619,110620.0,110610.0,0.1462408]
[1761245129148,0.10619,110620.0,110610.0,0.98759565]
[1761245129333,0.1965727,110620.0,110610.0,0.98759565]
[1761245129532,0.09347,110620.0,110610.0,1.34839565]
[1761245130939,0.35848745,110620.0,110610.0,0.76456]
[1761245131442,0.35848745,110620.0,110610.0,1.0832]
[1761245131645,0.1975726,110620.0,110610.0,0.88431485]
[1761245131849,0.35948745,110620.0,110610.0,0.88431485]
[1761245132047,0.75948745,110620.0,110610.0,0.56567485]
[1761245132347,0.61876766,110620.0,110610.0,0.7224]
[1761245132552,0.78068251,110620.0,110610.0,0.7224]
[1761245134348,0.61876766,110620.0,110610.0,0.88431485]
[1761245134550,0.61876766,110620.0,110610.0,0.97470565]
[1761245135348,0.78068251,110620.0,110610.0,0.88427485]
[1761245135749,0.78068251,110620.0,110610.0,0.97466565]
[1761245136554,0.61876766,110620.0,110610.0,0.97466565]
[1761245137349,0.61876766,110620.0,110610.0,0.88427485]
[1761245137549,0.78068251,110620.0,110610.0,0.88427485]
[1761245138554,0.61876766,110620.0,110610.0,0.8127509]
[1761245138958,0.78068251,110620.0,110610.0,0.97466575]
[1761245139252,0.78066926,110620.0,110610.0,0.97466575]
[1761245140254,0.61875441,110620.0,110610.0,0.97466575]
[1761245140656,0.61875441,110620.0,110610.0,0.88427485]
[1761245140853,0.61875441,110620.0,110610.0,0.56567485]
[1761245141156,0.78066926,110620.0,110610.0,0.88427485]
[1761245142949,0.78066926,110620.0,110610.0,0.52347485]
[1761245143152,0.78066926,110620.0,110610.0,0.36156]
[1761245143451,0.146589,110600.0,110590.0,0.40376]
[1761245143650,0.30850385,110600.0,110590.0,0.88427485]
[1761245144349,0.146589,110600.0,110590.0,0.97468205]
[1761245144551,0.30850385,110600.0,110590.0,0.99143205]
[1761245144751,0.146589,110600.0,110590.0,0.8167672]
[1761245145960,0.146589,110600.0,110590.0,0.8267672]
[1761245146852,0.146589,110600.0,110590.0,0.8197672]
[1761245147052,0.146589,110600.0,110590.0,0.72536]
[1761245147248,0.30850829,110600.0,110590.0,0.36556]
[1761245147459,0.1246453,110580.0,110570.0,0.40826]
[1761245147759,0.1466053,110580.0,110570.0,0.72686]
[1761245148558,0.1466053,110580.0,110570.0,0.72786]
[1761245149462,0.1466053,110580.0,110570.0,0.72986]
[1761245149653,0.1466053,110580.0,110570.0,0.74037]
[1761245149851,0.1466053,110580.0,110570.0,0.72986]
[1761245154563,0.1466053,110580.0,110570.0,0.74037]
[1761245154760,0.1466053,110580.0,110570.0,0.8307935]
[1761245154958,0.1338853,110580.0,110570.0,0.8307935]
[1761245156060,0.1338853,110580.0,110570.0,0.37957]
[1761245156659,0.1338853,110580.0,110570.0,0.74037]
[1761245158462,0.30955459,110580.0,110570.0,0.0075]
[1761245158655,0.47147388,110580.0,110570.0,0.05133]
[1761245158964,0.3307364,110580.0,110570.0,0.05133]
[1761245159262,0.62819459,110580.0,110570.0,0.05133]
[1761245159459,0.6493764,110580.0,110570.0,0.05133]
[1761245159654,1.0493764,110580.0,110570.0,0.02907]
[1761245160062,1.0493764,110580.0,110570.0,0.0075]
[1761245160758,1.0493764,110580.0,110570.0,0.02907]
[1761245161159,1.0493764,110580.0,110570.0,0.0075]
[1761245161357,1.58127358,110580.0,110570.0,0.0075]
[1761245161558,1.60529787,110580.0,110570.0,0.0075]
[1761245162154,0.1041736,110570.0,110560.0,0.00067155]
[1761245162366,0.1485699,110550.0,110540.0,0.41823191]
[1761245162665,0.31048919,110550.0,110540.0,0.41823191]
[1761245162863,0.31048919,110550.0,110540.0,0.40915304]
[1761245163056,0.31048919,110550.0,110540.0,0.00452304]
[1761245163365,1.23320848,110550.0,110540.0,4e-08]
[1761245163565,1.27841458,110550.0,110540.0,4e-08]
[1761245163960,1.31061479,110550.0,110540.0,4e-08]
[1761245164163,1.27841458,110550.0,110540.0,4e-08]
[1761245164563,0.1485862,110530.0,110520.0,0.40471005]
[1761245164757,0.31050549,110530.0,110520.0,0.40471005]
[1761245164958,0.31050549,110530.0,110520.0,0.04391005]
[1761245165158,0.31050549,110530.0,110520.0,8.005e-05]
[1761245165363,0.67130549,110530.0,110520.0,8.005e-05]
[1761245165561,0.6924873,110530.0,110520.0,8.005e-05]
[1761245165761,0.3316873,110530.0,110520.0,0.04391005]
[1761245166061,0.1485862,110530.0,110520.0,0.04391005]
[1761245166260,0.1348362,110530.0,110520.0,0.41522005]
[1761245166765,0.1368362,110530.0,110520.0,0.66760384]
[1761245167159,0.1368362,110530.0,110520.0,0.41522005]
[1761245167361,0.1146762,110530.0,110520.0,0.57713934]
[1761245167662,0.0924562,110530.0,110520.0,0.66760374]
[1761245167860,0.0904562,110530.0,110520.0,0.66860374]
[1761245169368,0.0904562,110530.0,110520.0,0.41622005]
[1761245169865,0.0904562,110530.0,110520.0,0.41822005]
[1761245170065,0.0904562,110530.0,110520.0,0.50868445]
[1761245170462,0.134828,110540.0,110530.0,0.03546]
[1761245170761,0.112668,110540.0,110530.0,0.98892259]
[1761245171062,0.1485764,110550.0,110540.0,0.05658]
[1761245171262,0.1485764,110550.0,110540.0,0.41738]
[1761245171577,0.1348264,110550.0,110540.0,0.57929929]
[1761245171968,0.1348264,110550.0,110540.0,0.41738]
[1761245172156,0.1448264,110550.0,110540.0,0.41838]
[1761245172358,0.1585764,110550.0,110540.0,0.41838]
[1761245172764,0.1448264,110550.0,110540.0,0.508828]
[1761245173171,0.1004464,110550.0,110540.0,0.508828]
[1761245173468,0.1004464,110550.0,110540.0,0.66974729]
[1761245173664,0.0924464,110550.0,110540.0,0.66974729]
[1761245174057,0.0924464,110550.0,110540.0,0.67074729]
[1761245174572,0.0904464,110550.0,110540.0,0.67074729]
[1761245174762,0.0904464,110550.0,110540.0,0.67574729]
[1761245174966,0.1348264,110550.0,110540.0,0.58979929]
[1761245175168,0.1348264,110550.0,110540.0,0.42788]
[1761245175371,0.0904464,110550.0,110540.0,0.518328]
[1761245175869,0.0904464,110550.0,110540.0,0.520328]
[1761245176170,0.1126664,110550.0,110540.0,0.520328]
[1761245176471,0.1348264,110550.0,110540.0,0.520328]
[1761245176672,0.0904464,110550.0,110540.0,0.520328]